Cogmind - Beta 14 @@@ ROGUE MODE // 2024.09.13 @ 15:33:00 Player: Null_error Result: Destroyed by G-34 Mercenary with Small Laser Performance ------------- Evolutions (0) 0 Regions Visited (1) 200 Robots Destroyed (27) 135 Value Destroyed (388) 388 Prototype IDs (0) 0 Alien Tech Used (0) 0 Bonus (0) 0 TOTAL SCORE: 723 Bonus ------- None Cogmind --------- Core Integrity 0/250 Matter 251/300 Energy 160/160 System Corruption 0% Temperature Cool (6) Movement Treading (160) Location -10/Materials Parts ------- > --- POWER (1) -------- Light Nuclear Core > --- PROPULSION (2) --- Light Treads Light Treads > --- UTILITY (2) ------ Medium Storage Unit Visual Processing Unit > --- WEAPON (2) ------- Light Assault Rifle Light Assault Rifle > --- INVENTORY (10) --- Flight Unit Flight Unit Flight Unit Structural Scanner Signal Interpreter Transport Network Coupler ECM Suite ECM Suite EM Pulse Gun Light Assault Rifle Peak State ------------ > --- POWER ------------ Light Nuclear Core > --- PROPULSION ------- Light Treads Light Treads > --- UTILITY ---------- Medium Storage Unit Visual Processing Unit > --- WEAPON ----------- Light Assault Rifle Light Assault Rifle > --- INVENTORY -------- Flight Unit Flight Unit Flight Unit Structural Scanner Signal Interpreter Transport Network Coupler ECM Suite ECM Suite EM Pulse Gun Light Assault Rifle [Rating: 11] Favorites ----------- Power Light Ion Engine Engine Light Ion Engine Power Core Light Nuclear Core Propulsion Light Treads Treads Light Treads Flight Unit Flight Unit Utility Medium Storage Unit Device Seismic Detector Storage Medium Storage Unit Processor Visual Processing Unit Weapon Assault Rifle Energy Gun EM Pulse Gun Ballistic Gun Assault Rifle Build | -11 -10 ------- Run | Yrd Mat Slots Evolved . | . . Power . | . . Propulsion . | . . Utility . | . . Weapon . | . . Parts Attached 32 | 8 24 Power 5 | 1 4 Engine 4 | 1 3 Core 1 | . 1 Reactor . | . . Propulsion 10 | 2 8 Treads 5 | 2 3 Leg . | . . Wheel . | . . Hover . | . . Flight 5 | . 5 Utility 7 | 2 5 Device 3 | 1 2 Storage 3 | 1 2 Processor 1 | . 1 Hackware . | . . Protection . | . . Artifact . | . . Weapon 10 | 3 7 Energy Gun 1 | 1 . Energy Cannon . | . . Ballistic Gun 9 | 2 7 Ballistic Cannon . | . . Launcher . | . . Special Weapon . | . . Impact Weapon . | . . Slashing Weapon . | . . Piercing Weapon . | . . Special Melee Weapon . | . . Unidentified Prototypes . | . . Parts Lost 4 | . 4 Power 1 | . 1 Propulsion 3 | . 3 Utility . | . . Weapon . | . . Highest Loss Streak 2 | . 2 To Critical Strikes . | . . Average Slot Usage (%) 95 | . 95 Engine 11 | . 11 Core 1 | . 1 Treads 17 | . 17 Flight 8 | . 8 Device 13 | . 13 Storage 10 | . 10 Processor 4 | . 4 Ballistic Gun 27 | . 27 Peak Build Rating 11 | 9 11 Average Rating 7 | 5 8 On Entrance 4 | . 9 Naked Turns . | . . Heaviest Build 20 | 12 20 Greatest Support 40 | 40 40 Greatest Overweight (x) 2 | 2 2 Average Overweight (x) . | . . Largest Inventory Capacity 10 | 8 10 Average Capacity 8 | 7 8 Most Carried 10 | 5 10 Average Carried 6 | 1 7 Final Capacity 10 | 8 10 Final Carried 10 | 5 10 Class Distribution -------------------- 71% | Mutant 28% | Scavenger-Mutant Dominant Class ---------------- Mutant | -10/Materials Resources | -11 -10 ----------- Run | Yrd Mat Matter Collected 881 | 328 553 Remotely . | . . Salvage Created 920 | 169 751 Parts 61 | 11 50 Haulers Intercepted 1 | . 1 Recyclers Shooed 1 | . 1 Parts Field Recycled . | . . Retrieved Matter . | . . Parts Self-Destructed . | . . Prevented . | . . Kills | -11 -10 ------- Run | Yrd Mat Combat Hostiles Destroyed 13 | . 13 Guns 13 | . 13 Classes Destroyed 7 | 3 4 Worker 5 | 2 3 Tunneler 2 | 2 . Hauler 1 | . 1 Recycler 4 | 1 3 Watcher 2 | . 2 Swarmer 6 | . 6 Grunt 7 | . 7 Best Kill Streak 5 | 3 5 Combat Bots Only 4 | . 4 Max Kills in Single Turn 2 | 1 2 Gunslinging 1 | . 1 Exploded . | . . Melee . | . . Uniques/NPCs Destroyed . | . . Combat | -11 -10 -------- Run | Yrd Mat Hostile Shots Fired 109 | . 109 Missed 27 | . 27 Damage Taken 842 | . 842 Core 256 | . 256 Absorbed by Shields . | . . Core Remaining (%) 100 | 100 . Volleys Fired 77 | 10 67 Largest 2 | 2 2 Hottest 40 | 40 40 Shots Fired 154 | 20 134 Gun 154 | 20 134 Cannon . | . . Launcher . | . . Special . | . . Kinetic 154 | 20 134 Thermal . | . . Explosive . | . . Electromagnetic . | . . Robot Hit Streak 8 | 8 7 Robot Miss Streak 5 | 1 5 Penetration Max . | . . Secondary Targets 3 | . 3 Max Gunslinging Chain 1 | . 1 Shots Hit Robots 89 | 14 75 Core Hits 42 | 8 34 Critical Kills . | . . Critical Parts Destroyed 1 | . 1 Critical Strikes 1 | . 1 Destroy 1 | . 1 Melee Attacks . | . . Impact . | . . Slashing . | . . Piercing . | . . Sneak Attacks . | . . Combat Hostiles . | . . Follow-up Attacks . | . . Damage Inflicted 1000 | 143 857 Guns 997 | 143 854 Cannons . | . . Explosions . | . . Melee . | . . Ramming 3 | . 3 Kinetic 997 | 143 854 Thermal . | . . Explosive . | . . Electromagnetic . | . . Impact . | . . Slashing . | . . Piercing . | . . Highest Corruption . | . . Average Corruption . | . . Corruption Purged . | . . Corruption Blocked . | . . Overload Shots . | . . Overflow Damage . | . . Projectiles . | . . Explosions . | . . Melee . | . . Knockbacks . | . . Impact . | . . Kinetic . | . . Secondary . | . . Self-Inflicted Damage . | . . Shots . | . . Rammed 1 | . 1 Targets Rammed 1 | . 1 Kicked . | . . Crushed . | . . Highest Temperature 26 | . 26 Average Temperature 8 | . 8 Received Heat Transfer 342 | . 342 Siege Activations . | . . Robots Corrupted . | . . Combat Hostiles . | . . Parts Fried . | . . Impact Corruptions . | . . Robots Melted . | . . Combat Hostiles . | . . Parts Melted . | . . Heat Transferred . | . . Parts Sabotaged . | . . Parts Stolen . | . . Parts Stripped . | . . Power Chain Reactions . | . . Alert | -11 -10 ------- Run | Yrd Mat Peak Influence 247 | 25 247 Initial 16 | . 16 Average 84 | 10 97 Maximum Alert Level 1 | . 1 Low Security (%) 97 | 100 97 Level 1 2 | . 2 Level 2 . | . . Level 3 . | . . Level 4 . | . . Level 5 . | . . High Security . | . . Max Security . | . . Squads Dispatched 3 | . 3 Investigation 1 | . 1 Extermination . | . . Reinforcement 2 | . 2 Assault . | . . Garrison . | . . Intercept . | . . Searches Triggered . | . . Construction Impeded . | . . Haulers Reinforced . | . . Active Scanning Responses . | . . Cargo Convoy Interrupts . | . . Stealth | -11 -10 --------- Run | Yrd Mat Distress Signals 2 | . 2 Communications Jammed . | . . Distress Signals . | . . Times Spotted 26 | . 26 Peak Tracking Total 4 | . 4 Tactical Retreats 1 | . 1 Traps | -11 -10 ------- Run | Yrd Mat Traps Triggered . | . . Indirectly . | . . Trap Hack Attempts . | . . Triggered . | . . Disarmed . | . . Reprogrammed . | . . Reused . | . . Traps Extracted . | . . Installed . | . . Triggered . | . . Machines | -11 -10 ---------- Run | Yrd Mat Machines Disabled . | . . Max in Single Turn . | . . Machines Repaired . | . . Machines Dismantled . | . . Machines Sabotaged . | . . Overloaded Fab Kills . | . . Hacking | -11 -10 --------- Run | Yrd Mat Machines Accessed 3 | . 3 Terminals 3 | . 3 Fabricators . | . . Repair Stations . | . . Recycling Units . | . . Scanalyzers . | . . Garrison Access . | . . Total Hacks 9 | . 9 Successful 5 | . 5 Failed 4 | . 4 Catastrophic 2 | . 2 Database Lockouts . | . . Manual 3 | . 3 Terminals 9 | . 9 Fabricators . | . . Repair Stations . | . . Recycling Units . | . . Scanalyzers . | . . Garrison Access . | . . Terminal Hacks 5 | . 5 Record 3 | . 3 Alert Level 1 | . 1 Unreport Threat 1 | . 1 Fabricator Hacks . | . . Repair Station Hacks . | . . Recycling Unit Hacks . | . . Scanalyzer . | . . Garrison Access Hacks . | . . Unauthorized Hacks . | . . Terminals . | . . Fabricators . | . . Repair Stations . | . . Recycling Units . | . . Scanalyzers . | . . Garrison Access . | . . Data Cores Recovered . | . . Used . | . . Hacking Detections 3 | . 3 Full Trace Events 3 | . 3 Feedback Events . | . . Feedback Blocked . | . . Robot Schematics Acquired . | . . Robots Built . | . . Authchips . | . . Time . | . . Total Robot Build Rating . | . . Part Schematics Acquired . | . . Parts Built . | . . Authchips . | . . Time . | . . Total Part Build Rating . | . . Parts Repaired . | . . Time . | . . Parts Recycled . | . . Recycled Matter . | . . Retrieved Matter . | . . Retrieved Components . | . . Parts Scanalyzed . | . . Part Schematics Acquired . | . . Parts Damaged . | . . Bothacking | -11 -10 ------------ Run | Yrd Mat Used RIF Installer . | . . Robots Hacked . | . . Non-combat . | . . Combat . | . . Robot Hacks Applied . | . . Relay Couplers Released . | . . Fabnet Peak Effective % . | . . Robots Rewired . | . . Allies Hacked . | . . Hacks Repelled . | . . Allies | -11 -10 -------- Run | Yrd Mat Total Allies . | . . Largest Group . | . . Highest-Rated Group . | . . Highest-Rated Ally . | . . Total Orders . | . . Ally Attacks . | . . Total Damage . | . . Kills . | . . Allies Corrupted . | . . Allies Melted . | . . Intel | -11 -10 ------- Run | Yrd Mat Robot Analysis Total . | . . Derelict Logs Recovered . | . . Drone Launches . | . . Drone Recoveries . | . . Exploration | -11 -10 ------------- Run | Yrd Mat Turns Passed 810 | 125 685 Spaces Moved 537 | 53 484 Core 16 | 16 . Treads 222 | 37 185 Legs . | . . Wheels . | . . Hover . | . . Flight 299 | . 299 Fastest Speed 37 | 50 37 Average Speed 94 | 152 88 Slowest Speed 197 | 160 197 Overloaded Moves . | . . Propulsion Burnouts . | . . Robots Hopped 3 | . 3 Cave-ins Triggered . | . . Exploration Rate (%) 32 | 6 59 Regions Visited 1 Branch Regions . Pre-discovered Areas . | . . Known Exits Taken . | . . Unknown Exits Taken 1 | 1 . Scrap Searched . | . . Spaces Dug . | . . Terrain Destroyed . | . . Melee . | . . Projectile . | . . AOE . | . . Terrain Rammed . | . . Walls Destroyed . | . . Machines Disabled . | . . Actions | -11 -10 --------- Run | Yrd Mat Total 687 | 75 612 Wait 13 | . 13 Move 530 | 52 478 Hop 3 | . 3 Pick Up 18 | 5 13 Fast Attach 9 | 7 2 Attach 6 | . 6 Detach 3 | . 3 Swap 17 | 1 16 Drop 10 | . 10 Fire 77 | 10 67 Melee . | . . Ram . | . . Kick . | . . Crush 1 | . 1 Escape Stasis . | . . Rewire . | . . Trap . | . . Miscellaneous . | . . Route ------- -11/Scrapyard -10/Materials (discovered 4 exits: [*Mat] / [*Min x2] / [Sub]) History --------- Turn | Location | Event 22 | -11/Scrapyard | Discovered new exit (range 15) 126 | -11/Scrapyard | Entered Materials 330 | -10/Materials | Build established: Mutant 466 | -10/Materials | Discovered new exit (range 8) 562 | -10/Materials | Core integrity fell below 50% 676 | -10/Materials | Discovered new exit (range 9) 680 | -10/Materials | Discovered new exit (range 7) 681 | -10/Materials | Discovered new exit (range 11) 740 | -10/Materials | Core integrity fell below 20% 811 | -10/Materials | Destroyed by G-34 Mercenary with Small Laser Last Messages --------------- 00720_ O-16 Technician: "IFF HANDSHAKE FAILED. SECURING TERMINAL." 00722_ ALERT: Hostiles spotted, dispatching reinforcements to Terminal M004. 00743_ G-34 Mercenary destroyed. 00749_ G-47 Trooper destroyed. 00751_ Acquired 36 matter. 00752_ Acquired Lgt. Nuclear Core. 00755_ Acquired 44 matter. 00779_ A-02 Transporter destroyed. 00782_ Acquired Med. Storage Unit. 00783_ Acquired Structural Scanner. 00786_ Acquired ECM Suite. 00787_ Acquired 53 matter. 00791_ Acquired Lgt. Treads. 00800_ Acquired Flight Unit. 00802_ K-01 Serf collects debris. 00806_ Acquired ECM Suite. 00808_ K-01 Serf collects debris. 00809_ Acquired Transport Network Coupler. Map ----- +----------------------------------------------------+ | ?????????????????????????????????????????????????? | | ?????????????????????????????????????????????????? | | ?????????????????????????????????????????????????? | | ?????????????????????????????????????????????????? | | ?????????????????????????????????????????????????? | | ?????????????????????????????????????????????????? | | ?????????????????????????????????????????????????? | | ?????????????????????????????????????????????????? | | ?????????????????????????????????????????????????? | | ?????????????????????????????????????????????????? | | ?????????????????????????????????????????????????? | | ?????????????????????????????????????????????????? | | ???????????????????????????????????????########### | | ?????????????#############?????????????# # | | ?????????????#############?????????????# ! # | | ?????????????## ##?????????????# # | | ?????????????## ##?????????????# """ """ # | | ?????????????## """ ##?????????????# """ """ # | | ?????????????## """ ##?????????????# """ """ # | | ?????????????## """ ##?????????????# # | | ?????????????##!! """ ##?????????????# / # | | ?????????????##!! """ ######### ?????######+#### | | ?????????????## ######### ???# #? | | ???????????#########+## ##+####???# ## | | ########?????####### ###### + | | ########??????????## @ < * # # ## | | # ########?## g g k % # T[[# #? | | # """ ########### g ##" "## *# !## ##? | | # """ # ##### ##" !"| "## #! *## #?? | | # R" # ##"""""""## * +=%! ## #?? | | # """ + ########### =#*[ ## #?? | | # # # ## [ ####### ### | | # # #### ## """ # ##### | | # ## ##### ## """ # | | # ## ##### ##"" """ + T | | ########### ##?## ##"" # ! ## | | ########### ##?## ##"T """ # =%##### ## | | ##?## ##"" """ ### =#??####+#### | | ##### #######?## ##"" """ #?# #??# | | ##### ########## ## #?#%! #??#! """ | | ##### ########## ###########?#!%!##?# """ | | ##### ###### ### ##????????#?#=* #??# """ | | #### ###### ### ##??#??#?#??# #??# | | #### ????## ### ##????????#?#*[*#??# """ | | #### #???## ### ##?????#????# %#??# """ | | ### ##???## ] ### ##?????????## ==#??# """? | | ######???## ### ##???######?# #??# ?? | | #####????## ! ### ##???# % # =#?#######??? | | #